[Event "Live Chess"]
[Site "Chess.com"]
[Date "2023.05.20"]
[Round "-"]
[White "LozzaLoaf"]
[Black "ChessTWSS"]
[Result "1-0"]
[WhiteElo "278"]
[BlackElo "1536"]
[TimeControl "300"]
[EndTime "13:58:44 PDT"]
[Termination "LozzaLoaf won by checkmate"]

1. d4 {[%clk 0:04:57]} 1... d5 {[%clk 0:04:55]} 2. e3 {[%clk 0:04:51.5]} 2... c5
{[%clk 0:04:50.6]} 3. dxc5 {[%clk 0:04:49.8]} 3... Nf6 {[%clk 0:04:34.7]} 4. c3
{[%clk 0:04:48.9]} 4... e6 {[%clk 0:04:28.7]} 5. Qa4+ {[%clk 0:04:47.5]} 5...
Bd7 {[%clk 0:04:23.1]} 6. Bb5 {[%clk 0:04:46.2]} 6... Bxc5 {[%clk 0:04:13.8]} 7.
Na3 {[%clk 0:04:39.5]} 7... Bxb5 {[%clk 0:04:03.4]} 8. Qxb5+ {[%clk 0:04:36.2]}
8... Nbd7 {[%clk 0:03:53.9]} 9. Bd2 {[%clk 0:04:27.9]} 9... Bxa3 {[%clk
0:03:47.9]} 10. bxa3 {[%clk 0:04:22.9]} 10... Qb6 {[%clk 0:03:41.5]} 11. Qxb6
{[%clk 0:04:17.5]} 11... axb6 {[%clk 0:03:37.9]} 12. Nf3 {[%clk 0:04:07.1]}
12... Rxa3 {[%clk 0:03:33.8]} 13. e4 {[%clk 0:04:02.6]} 13... Nxe4 {[%clk
0:03:28.1]} 14. Nd4 {[%clk 0:04:00.2]} 14... Nxc3 {[%clk 0:03:17.5]} 15. Bxc3
{[%clk 0:03:55.3]} 15... Rxc3 {[%clk 0:03:14.1]} 16. a4 {[%clk 0:03:47.7]} 16...
O-O {[%clk 0:03:01.9]} 17. O-O {[%clk 0:03:45.7]} 17... Rfc8 {[%clk 0:02:52.3]}
18. Ne2 {[%clk 0:03:35.3]} 18... Rc2 {[%clk 0:02:42.4]} 19. Nd4 {[%clk
0:03:31.8]} 19... R2c4 {[%clk 0:02:37.2]} 20. Nb5 {[%clk 0:03:24.8]} 20... Rb4
{[%clk 0:02:24.9]} 21. Na7 {[%clk 0:03:23.2]} 21... Rcc4 {[%clk 0:02:15.2]} 22.
a5 {[%clk 0:03:10.1]} 22... Ra4 {[%clk 0:02:12.3]} 23. axb6 {[%clk 0:03:05.4]}
23... Rxa1 {[%clk 0:02:08.3]} 24. Rxa1 {[%clk 0:03:02.9]} 24... Nxb6 {[%clk
0:02:07.2]} 25. Nb5 {[%clk 0:02:57.2]} 25... Rc2 {[%clk 0:02:00.1]} 26. Nd6
{[%clk 0:02:53]} 26... Na4 {[%clk 0:01:59]} 27. Nxb7 {[%clk 0:02:47.7]} 27...
Rb2 {[%clk 0:01:51.3]} 28. Nc5 {[%clk 0:02:44.8]} 28... Nxc5 {[%clk 0:01:49.6]}
29. Ra8+ {[%clk 0:02:42.9]} 29... Rb8 {[%clk 0:01:34.2]} 30. Rxb8# {[%clk
0:02:41.8]} 1-0

[Event "Live Chess"]
[Site "Chess.com"]
[Date "2023.05.20"]
[Round "-"]
[White "MartaMost"]
[Black "OceanFloater"]
[Result "1-0"]
[WhiteElo "1223"]
[BlackElo "1018"]
[TimeControl "300"]
[EndTime "13:58:45 PDT"]
[Termination "MartaMost won on time"]

1. e4 {[%clk 0:04:59]} 1... c6 {[%clk 0:04:58.3]} 2. Nf3 {[%clk 0:04:57.7]} 2...
d5 {[%clk 0:04:57.1]} 3. exd5 {[%clk 0:04:56.5]} 3... cxd5 {[%clk 0:04:56]} 4.
h3 {[%clk 0:04:55.3]} 4... Nf6 {[%clk 0:04:55.6]} 5. Bb5+ {[%clk 0:04:54.1]}
5... Bd7 {[%clk 0:04:50.6]} 6. Bxd7+ {[%clk 0:04:52.8]} 6... Qxd7 {[%clk
0:04:49.3]} 7. O-O {[%clk 0:04:51.8]} 7... e6 {[%clk 0:04:46.7]} 8. d3 {[%clk
0:04:50.8]} 8... Bd6 {[%clk 0:04:46.2]} 9. Bg5 {[%clk 0:04:49.2]} 9... Qe7
{[%clk 0:04:43.6]} 10. Nbd2 {[%clk 0:04:43.5]} 10... Nc6 {[%clk 0:04:40.8]} 11.
Re1 {[%clk 0:04:41.5]} 11... Bc7 {[%clk 0:04:39]} 12. c3 {[%clk 0:04:29]} 12...
O-O {[%clk 0:04:36.9]} 13. d4 {[%clk 0:04:27.7]} 13... h6 {[%clk 0:04:33.8]} 14.
Bh4 {[%clk 0:04:22.8]} 14... g5 {[%clk 0:04:30.5]} 15. Nxg5 {[%clk 0:04:20.3]}
15... hxg5 {[%clk 0:04:29]} 16. Bxg5 {[%clk 0:04:19.5]} 16... Qd6 {[%clk
0:04:17.5]} 17. g3 {[%clk 0:04:13.9]} 17... Nh7 {[%clk 0:04:16]} 18. Bf4 {[%clk
0:04:09.8]} 18... Qe7 {[%clk 0:04:13.4]} 19. Qg4+ {[%clk 0:04:07.4]} 19... Kh8
{[%clk 0:04:10.4]} 20. Bxc7 {[%clk 0:03:53.3]} 20... Qxc7 {[%clk 0:04:09]} 21.
Nf3 {[%clk 0:03:51.2]} 21... Rg8 {[%clk 0:04:07]} 22. Qh5 {[%clk 0:03:42.6]}
22... Qd8 {[%clk 0:03:52.8]} 23. h4 {[%clk 0:03:39.5]} 23... Ne7 {[%clk
0:03:37]} 24. Ng5 {[%clk 0:03:33.3]} 24... Rg7 {[%clk 0:03:35.1]} 25. Nxf7+
{[%clk 0:03:30.2]} 25... Rxf7 {[%clk 0:03:33.1]} 26. Qxf7 {[%clk 0:03:29.1]}
26... Qf8 {[%clk 0:03:26.3]} 27. Qh5 {[%clk 0:03:22.9]} 27... Qf6 {[%clk
0:03:11]} 28. Re5 {[%clk 0:03:18.4]} 28... Rg8 {[%clk 0:03:07.4]} 29. Rae1
{[%clk 0:03:12.6]} 29... Rf8 {[%clk 0:02:50.4]} 30. f4 {[%clk 0:03:06.8]} 30...
Qg7 {[%clk 0:02:40.6]} 31. Kh2 {[%clk 0:03:00.7]} 31... Nf5 {[%clk 0:02:32.1]}
32. Qf3 {[%clk 0:02:37.8]} 32... Nf6 {[%clk 0:02:15.4]} 33. Rxe6 {[%clk
0:02:32.9]} 33... Ng4+ {[%clk 0:02:13.3]} 34. Kh3 {[%clk 0:02:30.1]} 34... Nf6
{[%clk 0:01:31.5]} 35. R6e5 {[%clk 0:02:21.3]} 35... Ne4 {[%clk 0:01:21.3]} 36.
g4 {[%clk 0:02:06.7]} 36... Nh6 {[%clk 0:01:03]} 37. Rxd5 {[%clk 0:01:59.5]}
37... Nf2+ {[%clk 0:00:50.5]} 38. Qxf2 {[%clk 0:01:30.1]} 38... Qxg4+ {[%clk
0:00:48.7]} 39. Kh2 {[%clk 0:01:24.5]} 39... Rxf4 {[%clk 0:00:44.5]} 40. Re8+
{[%clk 0:01:13.6]} 40... Ng8 {[%clk 0:00:42.8]} 41. Qg3 {[%clk 0:01:03.1]} 41...
Qxg3+ {[%clk 0:00:13.4]} 42. Kxg3 {[%clk 0:01:01.3]} 42... Rf7 {[%clk
0:00:11.9]} 43. Rg5 {[%clk 0:00:56.8]} 43... Kh7 {[%clk 0:00:08.6]} 44. Rexg8
{[%clk 0:00:54.7]} 44... Rf6 {[%clk 0:00:05.6]} 45. R5g7+ {[%clk 0:00:51]} 45...
Kh6 {[%clk 0:00:04.2]} 46. Rg4 {[%clk 0:00:49.5]} 46... Kh7 {[%clk 0:00:00.3]}
47. R8g7+ {[%clk 0:00:47.1]} 1-0

[Event "Live Chess"]
[Site "Chess.com"]
[Date "2023.05.20"]
[Round "-"]
[White "grillage"]
[Black "stevochess11"]
[Result "1-0"]
[WhiteElo "1852"]
[BlackElo "1787"]
[TimeControl "300"]
[EndTime "13:58:51 PDT"]
[Termination "grillage won by resignation"]

1. d4 {[%clk 0:04:56.8]} 1... c6 {[%clk 0:04:58.8]} 2. Nf3 {[%clk 0:04:52.1]}
2... d5 {[%clk 0:04:57.3]} 3. c4 {[%clk 0:04:51.6]} 3... Nf6 {[%clk 0:04:54.4]}
4. Qc2 {[%clk 0:04:50.5]} 4... g6 {[%clk 0:04:52.7]} 5. Bf4 {[%clk 0:04:45.3]}
5... Bg7 {[%clk 0:04:51.3]} 6. e3 {[%clk 0:04:44.3]} 6... O-O {[%clk 0:04:45.2]}
7. Nc3 {[%clk 0:04:40.8]} 7... a5 {[%clk 0:04:25.4]} 8. Bd3 {[%clk 0:04:34.4]}
8... Na6 {[%clk 0:04:21.5]} 9. a3 {[%clk 0:04:32.2]} 9... Bg4 {[%clk 0:04:20]}
10. Ne5 {[%clk 0:04:29.6]} 10... Nc7 {[%clk 0:04:07.4]} 11. O-O {[%clk
0:04:22.9]} 11... Ne6 {[%clk 0:04:04.6]} 12. Bg3 {[%clk 0:04:17.3]} 12... Bh5
{[%clk 0:03:51.8]} 13. b4 {[%clk 0:03:54]} 13... axb4 {[%clk 0:03:49]} 14. axb4
{[%clk 0:03:51.2]} 14... Rxa1 {[%clk 0:03:47.8]} 15. Rxa1 {[%clk 0:03:40.1]}
15... Ng5 {[%clk 0:03:41.8]} 16. Ra7 {[%clk 0:03:25.6]} 16... Qb6 {[%clk
0:03:23.6]} 17. Ra4 {[%clk 0:03:12.6]} 17... Ng4 {[%clk 0:03:04.8]} 18. Nxg4
{[%clk 0:03:03.5]} 18... Bxg4 {[%clk 0:03:04.7]} 19. h3 {[%clk 0:03:00.9]} 19...
Bd7 {[%clk 0:02:53.6]} 20. c5 {[%clk 0:02:59.6]} 20... Qd8 {[%clk 0:02:44.2]}
21. Qa2 {[%clk 0:02:55.8]} 21... Re8 {[%clk 0:02:10]} 22. Ra7 {[%clk 0:02:51.4]}
22... e5 {[%clk 0:01:56.3]} 23. Bxe5 {[%clk 0:02:33.6]} 23... Rxe5 {[%clk
0:01:44.8]} 24. dxe5 {[%clk 0:02:30.9]} 24... Bxh3 {[%clk 0:01:43.7]} 25. Ra8
{[%clk 0:02:21.7]} 25... Qxa8 {[%clk 0:01:38]} 26. Qxa8+ {[%clk 0:02:19.8]} 1-0

[Event "Live Chess"]
[Site "Chess.com"]
[Date "2023.05.20"]
[Round "-"]
[White "Reggie016"]
[Black "LL220284LL"]
[Result "0-1"]
[WhiteElo "1070"]
[BlackElo "2391"]
[TimeControl "300"]
[EndTime "13:58:52 PDT"]
[Termination "LL220284LL won by resignation"]

1. e4 {[%clk 0:04:58.8]} 1... d5 {[%clk 0:04:59.1]} 2. exd5 {[%clk 0:04:57.9]}
2... Qxd5 {[%clk 0:04:59]} 3. Nc3 {[%clk 0:04:54.5]} 3... Qa5 {[%clk 0:04:55.5]}
4. d4 {[%clk 0:04:53.7]} 4... c6 {[%clk 0:04:53.3]} 5. Nf3 {[%clk 0:04:52.8]}
5... Nf6 {[%clk 0:04:52.2]} 6. Bd3 {[%clk 0:04:52.1]} 6... Bg4 {[%clk
0:04:51.4]} 7. h3 {[%clk 0:04:48.4]} 7... Bh5 {[%clk 0:04:46.9]} 8. g4 {[%clk
0:04:47]} 8... Bg6 {[%clk 0:04:43.8]} 9. Bxg6 {[%clk 0:04:43.1]} 9... hxg6
{[%clk 0:04:42.5]} 10. Bd2 {[%clk 0:04:42.4]} 10... Qc7 {[%clk 0:04:40]} 11. Qe2
{[%clk 0:04:36.3]} 11... Nxg4 {[%clk 0:04:38.7]} 12. O-O-O {[%clk 0:04:28.1]}
12... Nf6 {[%clk 0:04:36.5]} 13. Qc4 {[%clk 0:04:00.6]} 13... e6 {[%clk
0:04:27.2]} 14. Rde1 {[%clk 0:03:56.2]} 14... Nbd7 {[%clk 0:04:25.3]} 15. Ng5
{[%clk 0:03:50.8]} 15... Nb6 {[%clk 0:04:22.5]} 16. Qb3 {[%clk 0:03:37.7]} 16...
O-O-O {[%clk 0:04:14.2]} 17. Rxe6 {[%clk 0:03:19.3]} 17... fxe6 {[%clk
0:04:11.2]} 18. Nxe6 {[%clk 0:03:19.1]} 18... Qf7 {[%clk 0:04:07.8]} 19. Nxd8
{[%clk 0:03:10.1]} 19... Qxb3 {[%clk 0:04:04.9]} 20. axb3 {[%clk 0:03:05.8]}
20... Kxd8 {[%clk 0:04:03.9]} 21. Bg5 {[%clk 0:03:04.1]} 21... Be7 {[%clk
0:04:01.9]} 22. Re1 {[%clk 0:03:01.6]} 22... Nfd5 {[%clk 0:04:00.5]} 23. Nxd5
{[%clk 0:02:58.9]} 23... Nxd5 {[%clk 0:03:59]} 24. Bxe7+ {[%clk 0:02:50.7]}
24... Nxe7 {[%clk 0:03:58.9]} 25. Re3 {[%clk 0:02:50.2]} 25... Nf5 {[%clk
0:03:57.9]} 26. Re6 {[%clk 0:02:44.3]} 26... Rxh3 {[%clk 0:03:54.8]} 27. Rxg6
{[%clk 0:02:43.4]} 27... Rh1+ {[%clk 0:03:53.4]} 28. Kd2 {[%clk 0:02:41.9]}
28... Ke7 {[%clk 0:03:51.6]} 29. c4 {[%clk 0:02:35.1]} 29... Kf7 {[%clk
0:03:47.9]} 30. Rg4 {[%clk 0:02:30.9]} 30... Rh4 {[%clk 0:03:46.3]} 31. Rxh4
{[%clk 0:02:28.1]} 31... Nxh4 {[%clk 0:03:46.2]} 32. Ke3 {[%clk 0:02:24.4]}
32... Kf6 {[%clk 0:03:45.6]} 33. d5 {[%clk 0:02:22.6]} 33... cxd5 {[%clk
0:03:43.7]} 34. cxd5 {[%clk 0:02:21.9]} 34... Ke5 {[%clk 0:03:42.6]} 35. f4+
{[%clk 0:02:17.6]} 35... Kxd5 {[%clk 0:03:42]} 0-1

[Event "Live Chess"]
[Site "Chess.com"]
[Date "2023.05.20"]
[Round "-"]
[White "VovaOvchar1990"]
[Black "WelshTiger"]
[Result "0-1"]
[WhiteElo "1229"]
[BlackElo "2396"]
[TimeControl "300"]
[EndTime "13:59:03 PDT"]
[Termination "WelshTiger won by resignation"]

1. e4 {[%clk 0:04:56.2]} 1... c5 {[%clk 0:04:58.6]} 2. d4 {[%clk 0:04:53.8]}
2... cxd4 {[%clk 0:04:57.5]} 3. Qxd4 {[%clk 0:04:52.5]} 3... d6 {[%clk 0:04:57]}
4. Nf3 {[%clk 0:04:51.1]} 4... Nf6 {[%clk 0:04:55.9]} 5. Bb5+ {[%clk 0:04:49.3]}
5... Nc6 {[%clk 0:04:51.1]} 6. O-O {[%clk 0:04:47.3]} 6... Bd7 {[%clk
0:04:50.3]} 7. h3 {[%clk 0:04:45.1]} 7... Nxd4 {[%clk 0:04:48.9]} 8. Nxd4 {[%clk
0:04:43.2]} 8... Bxb5 {[%clk 0:04:47.6]} 9. Nxb5 {[%clk 0:04:41.6]} 9... a6
{[%clk 0:04:46.3]} 10. Nd4 {[%clk 0:04:40]} 10... e6 {[%clk 0:04:45.4]} 11. c3
{[%clk 0:04:38.4]} 11... Nxe4 {[%clk 0:04:44.2]} 12. Bf4 {[%clk 0:04:36.2]}
12... Be7 {[%clk 0:04:42.9]} 13. Bg3 {[%clk 0:04:34.7]} 13... O-O {[%clk
0:04:41.1]} 14. Na3 {[%clk 0:04:31.3]} 14... Nxg3 {[%clk 0:04:39.7]} 15. fxg3
{[%clk 0:04:26.3]} 15... d5 {[%clk 0:04:39.2]} 16. Nac2 {[%clk 0:04:22.3]} 16...
Bc5 {[%clk 0:04:38.8]} 17. Ne3 {[%clk 0:04:21]} 17... Bxd4 {[%clk 0:04:37.7]}
18. cxd4 {[%clk 0:04:20.4]} 18... Qb6 {[%clk 0:04:37.6]} 0-1

[Event "Live Chess"]
[Site "Chess.com"]
[Date "2023.05.20"]
[Round "-"]
[White "gmnorfolk"]
[Black "lucaskk818"]
[Result "0-1"]
[WhiteElo "2097"]
[BlackElo "1896"]
[TimeControl "300"]
[EndTime "13:59:14 PDT"]
[Termination "lucaskk818 won by resignation"]

1. d4 {[%clk 0:04:58.2]} 1... Nf6 {[%clk 0:04:58]} 2. c4 {[%clk 0:04:57]} 2...
e6 {[%clk 0:04:57.5]} 3. Nc3 {[%clk 0:04:55.5]} 3... Bb4 {[%clk 0:04:57]} 4. e3
{[%clk 0:04:54.8]} 4... O-O {[%clk 0:04:56.3]} 5. Bd3 {[%clk 0:04:54.3]} 5... d5
{[%clk 0:04:54.6]} 6. Nf3 {[%clk 0:04:52.8]} 6... b6 {[%clk 0:04:52.7]} 7. cxd5
{[%clk 0:04:49.9]} 7... exd5 {[%clk 0:04:51.2]} 8. Bd2 {[%clk 0:04:49.5]} 8...
Bb7 {[%clk 0:04:49.4]} 9. O-O {[%clk 0:04:47.2]} 9... Re8 {[%clk 0:04:45.2]} 10.
Ne5 {[%clk 0:04:46.6]} 10... Nbd7 {[%clk 0:04:42.9]} 11. f4 {[%clk 0:04:46]}
11... Bxc3 {[%clk 0:04:36.1]} 12. Bxc3 {[%clk 0:04:41.5]} 12... Ne4 {[%clk
0:04:36]} 13. Be1 {[%clk 0:04:32.9]} 13... Ndf6 {[%clk 0:04:35.1]} 14. g4 {[%clk
0:04:22.5]} 14... c5 {[%clk 0:04:17.4]} 15. Rc1 {[%clk 0:04:14.4]} 15... c4
{[%clk 0:04:13.3]} 16. Bb1 {[%clk 0:04:11.8]} 16... Nd6 {[%clk 0:04:06]} 17. Kh1
{[%clk 0:04:00.3]} 17... Nfe4 {[%clk 0:03:59]} 18. f5 {[%clk 0:03:46.8]} 18...
f6 {[%clk 0:03:56.1]} 19. Nf3 {[%clk 0:03:42.5]} 19... Rc8 {[%clk 0:03:50.2]}
20. Rg1 {[%clk 0:03:38.9]} 20... Ng5 {[%clk 0:03:25.1]} 21. Nxg5 {[%clk
0:03:30.3]} 21... fxg5 {[%clk 0:03:25]} 22. Bg3 {[%clk 0:03:25.2]} 22... Rxe3
{[%clk 0:03:16.7]} 23. Be5 {[%clk 0:03:22.6]} 23... c3 {[%clk 0:02:55.7]} 24.
bxc3 {[%clk 0:03:16.6]} 24... Rexc3 {[%clk 0:02:47.5]} 25. Rxc3 {[%clk
0:03:13.7]} 25... Rxc3 {[%clk 0:02:47.4]} 26. Qd2 {[%clk 0:03:06.2]} 26... Rc8
{[%clk 0:02:28.1]} 27. Rf1 {[%clk 0:02:36.9]} 27... Ne4 {[%clk 0:02:26.8]} 28.
Qe3 {[%clk 0:02:31.8]} 28... Rc3 {[%clk 0:02:22.9]} 29. Qe1 {[%clk 0:02:23.6]}
29... Qc8 {[%clk 0:02:14.1]} 30. f6 {[%clk 0:01:44.1]} 30... gxf6 {[%clk
0:02:11.2]} 31. Bxf6 {[%clk 0:01:37.8]} 31... Nxf6 {[%clk 0:02:08.4]} 32. Qe7
{[%clk 0:01:22.8]} 32... Rc1 {[%clk 0:01:12.6]} 33. Qxf6 {[%clk 0:01:00.2]}
33... Rxf1+ {[%clk 0:01:11.3]} 34. Qxf1 {[%clk 0:00:59.5]} 34... Qxg4 {[%clk
0:01:10.6]} 35. Bf5 {[%clk 0:00:56.8]} 35... Qf4 {[%clk 0:01:08.4]} 36. Be6+
{[%clk 0:00:48.2]} 36... Kg7 {[%clk 0:01:04.4]} 37. Qb5 {[%clk 0:00:42.2]} 37...
Qe4+ {[%clk 0:00:59.8]} 38. Kg1 {[%clk 0:00:39.6]} 38... Qxe6 {[%clk 0:00:58.7]}
0-1

[Event "Live Chess"]
[Site "Chess.com"]
[Date "2023.05.20"]
[Round "-"]
[White "Missedidea"]
[Black "AttackingSnowLeopard"]
[Result "0-1"]
[WhiteElo "1748"]
[BlackElo "2069"]
[TimeControl "300"]
[EndTime "13:59:19 PDT"]
[Termination "AttackingSnowLeopard won by resignation"]

1. d4 {[%clk 0:04:59]} 1... d5 {[%clk 0:04:56.5]} 2. c4 {[%clk 0:04:57.5]} 2...
c6 {[%clk 0:04:55.7]} 3. Nf3 {[%clk 0:04:55.6]} 3... Nf6 {[%clk 0:04:55.2]} 4.
Nc3 {[%clk 0:04:54.6]} 4... dxc4 {[%clk 0:04:54.6]} 5. e4 {[%clk 0:04:51.7]}
5... b5 {[%clk 0:04:53.1]} 6. e5 {[%clk 0:04:49.9]} 6... Nd5 {[%clk 0:04:52]} 7.
a4 {[%clk 0:04:40.2]} 7... e6 {[%clk 0:04:49.2]} 8. axb5 {[%clk 0:04:37.5]} 8...
Nxc3 {[%clk 0:04:47.9]} 9. bxc3 {[%clk 0:04:35.8]} 9... cxb5 {[%clk 0:04:47.4]}
10. Be2 {[%clk 0:04:30.4]} 10... Bb7 {[%clk 0:04:43.4]} 11. O-O {[%clk
0:04:29.1]} 11... Be7 {[%clk 0:04:41.9]} 12. h4 {[%clk 0:04:22.6]} 12... h6
{[%clk 0:04:39.8]} 13. g3 {[%clk 0:04:17.7]} 13... Bd5 {[%clk 0:04:36.4]} 14.
Be3 {[%clk 0:04:01.9]} 14... Nc6 {[%clk 0:04:34.5]} 15. Qb1 {[%clk 0:03:48.7]}
15... a6 {[%clk 0:04:28.6]} 16. Nd2 {[%clk 0:03:45.4]} 16... g5 {[%clk
0:04:11.2]} 17. h5 {[%clk 0:03:38.8]} 17... Na5 {[%clk 0:03:56.1]} 18. Bf3
{[%clk 0:03:02.2]} 18... Nb3 {[%clk 0:03:47.5]} 19. Bxd5 {[%clk 0:02:56.6]}
19... Qxd5 {[%clk 0:03:41.1]} 20. Ra2 {[%clk 0:02:46.3]} 20... Nxd2 {[%clk
0:03:36.2]} 21. Bxd2 {[%clk 0:02:40.1]} 21... Kd7 {[%clk 0:03:28]} 22. Qa1
{[%clk 0:02:34.2]} 22... Qc6 {[%clk 0:03:23.4]} 23. Rd1 {[%clk 0:02:26.9]} 23...
a5 {[%clk 0:03:07.9]} 24. Rxa5 {[%clk 0:02:22.6]} 24... Rxa5 {[%clk 0:03:06.1]}
25. Qxa5 {[%clk 0:02:17.1]} 25... Ra8 {[%clk 0:03:04.5]} 26. d5 {[%clk
0:02:15.9]} 26... exd5 {[%clk 0:02:58.1]} 0-1

[Event "Live Chess"]
[Site "Chess.com"]
[Date "2023.05.20"]
[Round "-"]
[White "NatashaRegan"]
[Black "FlyingChessKestrel13"]
[Result "0-1"]
[WhiteElo "1778"]
[BlackElo "2111"]
[TimeControl "300"]
[EndTime "13:59:21 PDT"]
[Termination "FlyingChessKestrel13 won by resignation"]

1. e4 {[%clk 0:04:54.5]} 1... c5 {[%clk 0:04:57.7]} 2. d4 {[%clk 0:04:52.5]}
2... cxd4 {[%clk 0:04:56.3]} 3. c3 {[%clk 0:04:51.8]} 3... dxc3 {[%clk
0:04:55.7]} 4. Nxc3 {[%clk 0:04:51.1]} 4... e6 {[%clk 0:04:55.2]} 5. Bc4 {[%clk
0:04:48.3]} 5... d6 {[%clk 0:04:53.8]} 6. Nf3 {[%clk 0:04:46]} 6... a6 {[%clk
0:04:52.4]} 7. O-O {[%clk 0:04:44.3]} 7... Be7 {[%clk 0:04:47.9]} 8. Bf4 {[%clk
0:04:34.4]} 8... Nf6 {[%clk 0:04:44.6]} 9. Qe2 {[%clk 0:04:32.4]} 9... O-O
{[%clk 0:04:42.6]} 10. b4 {[%clk 0:04:30.3]} 10... Qc7 {[%clk 0:04:38.8]} 11.
Rac1 {[%clk 0:04:22.9]} 11... Nc6 {[%clk 0:04:36.7]} 12. b5 {[%clk 0:04:11.3]}
12... axb5 {[%clk 0:04:32.5]} 13. Nxb5 {[%clk 0:04:07.2]} 13... Qb8 {[%clk
0:04:31]} 14. e5 {[%clk 0:03:56.7]} 14... Ne8 {[%clk 0:04:04.4]} 15. exd6 {[%clk
0:03:52.4]} 15... Nxd6 {[%clk 0:04:02.5]} 16. Rfd1 {[%clk 0:03:47.5]} 16... Rd8
{[%clk 0:04:00.5]} 17. Bxd6 {[%clk 0:03:19.7]} 17... Bxd6 {[%clk 0:03:56.1]} 18.
Nxd6 {[%clk 0:03:15.6]} 18... Rxd6 {[%clk 0:03:54.1]} 19. Ng5 {[%clk 0:03:09.4]}
19... h6 {[%clk 0:03:49.3]} 20. Nxf7 {[%clk 0:02:57.2]} 20... Kxf7 {[%clk
0:03:43.7]} 21. Qh5+ {[%clk 0:02:55.8]} 21... Kg8 {[%clk 0:03:39.4]} 22. Qe8+
{[%clk 0:02:53]} 22... Kh7 {[%clk 0:03:38.1]} 23. Bd3+ {[%clk 0:02:49.4]} 23...
Rxd3 {[%clk 0:03:31.9]} 24. Rxd3 {[%clk 0:02:47.3]} 24... Qf4 {[%clk 0:03:20.2]}
25. Re1 {[%clk 0:02:37.2]} 25... Rxa2 {[%clk 0:02:40.8]} 26. Rf3 {[%clk
0:02:30.9]} 26... Qd2 {[%clk 0:02:37.6]} 27. Rf1 {[%clk 0:02:25.4]} 27... Qd8
{[%clk 0:02:27]} 28. Qf7 {[%clk 0:02:17.5]} 28... Qe7 {[%clk 0:02:21]} 29. Qf4
{[%clk 0:02:08.1]} 29... Qe8 {[%clk 0:01:52.1]} 30. Qe4+ {[%clk 0:02:05.5]}
30... Qg6 {[%clk 0:01:50.3]} 31. Qc4 {[%clk 0:01:56.7]} 31... Ra5 {[%clk
0:01:45.4]} 32. Rg3 {[%clk 0:01:52.7]} 32... Rg5 {[%clk 0:01:43.7]} 33. Rd1
{[%clk 0:01:43.3]} 33... e5 {[%clk 0:01:40]} 34. Rxg5 {[%clk 0:01:33.5]} 34...
Qxg5 {[%clk 0:01:32.8]} 35. g3 {[%clk 0:01:21.3]} 35... Qg6 {[%clk 0:01:30.2]}
36. Qc5 {[%clk 0:01:11.1]} 36... Bg4 {[%clk 0:01:26.5]} 37. Re1 {[%clk
0:01:04.3]} 37... Nd4 {[%clk 0:01:24.1]} 38. Re3 {[%clk 0:00:57.5]} 38... Bh3
{[%clk 0:01:06.8]} 39. Qxe5 {[%clk 0:00:52.7]} 39... Qb1+ {[%clk 0:01:01.1]} 40.
Re1 {[%clk 0:00:49.5]} 40... Nf3+ {[%clk 0:00:59.5]} 0-1

[Event "Live Chess"]
[Site "Chess.com"]
[Date "2023.05.20"]
[Round "-"]
[White "Geomorph"]
[Black "HoarseyHorsey"]
[Result "0-1"]
[WhiteElo "1249"]
[BlackElo "1422"]
[TimeControl "300"]
[EndTime "13:59:38 PDT"]
[Termination "HoarseyHorsey won by resignation"]

1. e4 {[%clk 0:04:58.7]} 1... c5 {[%clk 0:04:58.8]} 2. Nf3 {[%clk 0:04:56.9]}
2... e6 {[%clk 0:04:58.1]} 3. Bb5 {[%clk 0:04:24.8]} 3... Nc6 {[%clk 0:04:54.3]}
4. O-O {[%clk 0:04:23.1]} 4... d5 {[%clk 0:04:50.4]} 5. exd5 {[%clk 0:04:20.3]}
5... exd5 {[%clk 0:04:50.3]} 6. Re1+ {[%clk 0:04:13.1]} 6... Be7 {[%clk
0:04:46.5]} 7. Ne5 {[%clk 0:04:12.1]} 7... Qc7 {[%clk 0:04:43.7]} 8. d4 {[%clk
0:04:08.9]} 8... Nf6 {[%clk 0:04:39.8]} 9. Bf4 {[%clk 0:04:07.5]} 9... O-O
{[%clk 0:04:34.7]} 10. Bxc6 {[%clk 0:04:03.3]} 10... bxc6 {[%clk 0:04:32.3]} 11.
Qf3 {[%clk 0:03:49.4]} 11... cxd4 {[%clk 0:04:25.5]} 12. Ng6 {[%clk 0:03:32.1]}
12... Bd6 {[%clk 0:04:14.8]} 13. Bxd6 {[%clk 0:03:24.5]} 13... Qxd6 {[%clk
0:04:12.4]} 14. Nxf8 {[%clk 0:03:23.4]} 14... Kxf8 {[%clk 0:04:10.1]} 15. Nd2
{[%clk 0:03:20.8]} 15... Ba6 {[%clk 0:04:02.8]} 16. Nb3 {[%clk 0:03:17.7]} 16...
c5 {[%clk 0:03:57.2]} 17. Nd2 {[%clk 0:03:13]} 17... c4 {[%clk 0:03:48.9]} 18.
Rad1 {[%clk 0:03:03.7]} 18... Bb7 {[%clk 0:03:44.8]} 19. Qh3 {[%clk 0:02:54.1]}
19... Bc8 {[%clk 0:03:40.7]} 20. Qf3 {[%clk 0:02:48.7]} 20... Bb7 {[%clk
0:03:39.2]} 21. Qh3 {[%clk 0:02:45.1]} 21... Bc8 {[%clk 0:03:37.9]} 22. Qh4
{[%clk 0:02:44.4]} 22... Qc5 {[%clk 0:03:25.8]} 23. Nf3 {[%clk 0:02:39.7]} 23...
Bg4 {[%clk 0:03:16.4]} 24. Nxd4 {[%clk 0:02:33.5]} 24... Bxd1 {[%clk 0:03:14.6]}
25. Rxd1 {[%clk 0:02:31.2]} 25... Re8 {[%clk 0:03:12.4]} 26. Kf1 {[%clk
0:02:21.4]} 26... Re4 {[%clk 0:03:00.8]} 27. Qg3 {[%clk 0:02:20.5]} 27... Rxd4
{[%clk 0:02:51.1]} 28. Qb8+ {[%clk 0:02:18.7]} 28... Ke7 {[%clk 0:02:49.7]} 29.
Re1+ {[%clk 0:02:17.6]} 29... Re4 {[%clk 0:02:42.8]} 30. Rxe4+ {[%clk 0:01:59]}
30... Nxe4 {[%clk 0:02:39.3]} 31. Qb7+ {[%clk 0:01:55.6]} 31... Kf6 {[%clk
0:02:31.1]} 0-1

[Event "Live Chess"]
[Site "Chess.com"]
[Date "2023.05.20"]
[Round "-"]
[White "lordjimvi"]
[Black "f4nomore"]
[Result "0-1"]
[WhiteElo "390"]
[BlackElo "1378"]
[TimeControl "300"]
[EndTime "13:59:38 PDT"]
[Termination "f4nomore won by resignation"]

1. c3 {[%clk 0:04:56.1]} 1... g6 {[%clk 0:04:59.9]} 2. e4 {[%clk 0:04:54.8]}
2... Bg7 {[%clk 0:04:59.8]} 3. d3 {[%clk 0:04:53.6]} 3... d6 {[%clk 0:04:59.7]}
4. Nf3 {[%clk 0:04:51.7]} 4... Nc6 {[%clk 0:04:57.4]} 5. b4 {[%clk 0:04:49.4]}
5... Bd7 {[%clk 0:04:55.8]} 6. b5 {[%clk 0:04:48.4]} 6... Ne5 {[%clk 0:04:53.1]}
7. Nxe5 {[%clk 0:04:46.9]} 7... Bxe5 {[%clk 0:04:49.8]} 8. Ba3 {[%clk
0:04:43.5]} 8... Bxb5 {[%clk 0:04:44.5]} 9. c4 {[%clk 0:04:39.5]} 9... Bxa1
{[%clk 0:04:35.2]} 10. Qb3 {[%clk 0:04:35.4]} 10... Bc6 {[%clk 0:04:22.9]} 11.
Qa4 {[%clk 0:04:27.2]} 0-1